[Event "1000GM Spring Break Schev-F 2024"]
[Site "San Jose"]
[Date "2024.04.07"]
[Round "5.4"]
[White "Gongora Montes, Benjamin"]
[Black "Penagalapati, Abhinav"]
[Result "1/2-1/2"]
[ECO "D13"]
[WhiteElo "2092"]
[BlackElo "2098"]
[Annotator "RC"]
[PlyCount "45"]
[EventDate "2024.03.28"]
[EventType "schev"]
[EventCountry "USA"]
[SourceTitle "playchess.com"]
[Source "ChessBase"]
[SourceQuality "1"]
[TimeControl "5400+30"]

1. d4 {[%emt 0:00:02]} d5 {[%emt 0:02:40]} 2. c4 {[%emt 0:00:17]} c6 {[%emt 0:00:11]} 3. Nf3 {[%emt 0:00:28]} Nf6 {[%emt 0:00:05]} 4. cxd5 {[%emt 0:00:16]} cxd5 {[%emt 0:00:02]} 5. Nc3 {[%emt 0:00:11]} Nc6 {[%emt 0:00:06]} 6. Bf4 {[%emt 0:00:09]} e6 {[%emt 0:00:13]} 7. e3 {[%emt 0:00:09]} a6 {[%emt 0:00:07]} 8. Bd3 {[%emt 0:01:07]} Bd6 {[%emt 0:00:06]} 9. Bxd6 {[%emt 0:00:58]} Qxd6 {[%emt 0:00:01]} 10. O-O {[%emt 0:00:13]} O-O {[%emt 0:00:04]} 11. Na4 {[%emt 0:01:31]} Nd7 {[%emt 0:02:54]} 12. Rc1 {[%emt 0:00:15]} f5 {[%emt 0:00:11]} 13. a3 {[%emt 0:02:13]} Nf6 {[%emt 0:10:51]} 14. b4 {[%emt 0:04:26]} Bd7 {[%emt 0:00:40]} 15. Nc5 {[%emt 0:00:11]} Rfb8 {[%emt 0:02:04]} 16. Qb3 {[%emt 0:00:43]} Be8 {[%emt 0:00:23]} 17. Qb2 {[%emt 0:03:32]} Ne7 {[%emt 0:11:30]} 18. a4 {[%emt 0:08:16]} Ne4 {[%emt 0:07:12]} 19. Ne5 {[%emt 0:02:20]} b5 {[%emt 0:02:57]} 20. f3 {[%emt 0:01:15]} Nxc5 {[%emt 0:01:32]} 21. dxc5 {[%emt 0:00:14]} Qc7 {[%emt 0:00:01]} 22. a5 {[%emt 0:00:24]} Nc6 {[%emt 0:00:49]} 23. f4 {[%emt 0:03:50]} 1/2-1/2